[Event "Blixt-SM 2025"]
[Site "Norrköping, Sweden"]
[Date "2025.09.26"]
[Round "11.9"]
[White "Sandberg, Lucas"]
[Black "Eriksson, Kristian"]
[Result "1-0"]
[TimeControl "3 min + 2 sec/move"]
[WhiteElo "2268"]
[BlackElo "2033"]

1. g4 {[%clk 00:03:02]} {[%emt 00:00:01]} e5 {[%clk 00:03:00]} {[%emt
00:00:04]} 2. Bg2 {[%clk 00:03:03]} {[%emt 00:00:02]} Nc6 {[%clk 00:02:53]}
{[%emt 00:00:09]} 3. c4 {[%clk 00:03:04]} d6 {[%clk 00:02:51]} {[%emt
00:00:04]} 4. e3 {[%clk 00:03:04]} {[%emt 00:00:01]} f5 {[%clk 00:02:43]}
{[%emt 00:00:10]} 5. gxf5 {[%clk 00:03:02]} {[%emt 00:00:04]} Bxf5 {[%clk
00:02:41]} {[%emt 00:00:04]} 6. Qb3 {[%clk 00:02:58]} {[%emt 00:00:05]} Rb8
{[%clk 00:02:37]} {[%emt 00:00:07]} 7. Ne2 {[%clk 00:02:58]} {[%emt 00:00:01]}
Nf6 {[%clk 00:02:33]} {[%emt 00:00:07]} 8. Ng3 {[%clk 00:02:46]} {[%emt
00:00:14]} Be6 {[%clk 00:02:29]} {[%emt 00:00:06]} 9. Nc3 {[%clk 00:02:46]}
{[%emt 00:00:02]} Be7 {[%clk 00:02:14]} {[%emt 00:00:17]} 10. Nd5 {[%clk
00:02:45]} {[%emt 00:00:03]} O-O {[%clk 00:02:07]} {[%emt 00:00:09]} 11. d3
{[%clk 00:02:45]} {[%emt 00:00:03]} Nd7 {[%clk 00:01:49]} {[%emt 00:00:20]} 12.
Bd2 {[%clk 00:02:34]} {[%emt 00:00:11]} Nc5 {[%clk 00:01:46]} {[%emt 00:00:06]}
13. Qc2 {[%clk 00:02:35]} {[%emt 00:00:01]} a5 {[%clk 00:01:47]} 14. b3 {[%clk
00:02:34]} {[%emt 00:00:03]} Bxd5 {[%clk 00:01:36]} {[%emt 00:00:13]} 15. Bxd5+
{[%clk 00:02:34]} {[%emt 00:00:02]} Kh8 {[%clk 00:01:37]} 16. a3 {[%clk
00:02:36]} Bf6 {[%clk 00:01:31]} {[%emt 00:00:10]} 17. b4 {[%clk 00:02:35]}
{[%emt 00:00:02]} e4 {[%clk 00:01:14]} {[%emt 00:00:19]} 18. bxc5 {[%clk
00:02:32]} {[%emt 00:00:05]} Bxa1 {[%clk 00:01:14]} {[%emt 00:00:02]} 19. d4
{[%clk 00:02:32]} {[%emt 00:00:02]} Bxd4 {[%clk 00:00:47]} {[%emt 00:00:29]} 20.
Bxc6 {[%clk 00:02:27]} {[%emt 00:00:07]} Bxc5 {[%clk 00:00:41]} {[%emt
00:00:08]} 21. Bxe4 {[%clk 00:02:26]} {[%emt 00:00:03]} Qh4 {[%clk 00:00:37]}
{[%emt 00:00:06]} 22. Bc3 {[%clk 00:02:12]} {[%emt 00:00:15]} Bxa3 {[%clk
00:00:33]} {[%emt 00:00:07]} 23. Nf5 {[%clk 00:02:12]} {[%emt 00:00:01]} Rxf5
24. Bxf5 {[%clk 00:02:14]} Rf8 {[%clk 00:00:23]} {[%emt 00:00:10]} 25. Rg1
{[%clk 00:02:14]} {[%emt 00:00:02]} Rf7 {[%clk 00:00:14]} {[%emt 00:00:11]} 26.
Be6 {[%clk 00:02:01]} {[%emt 00:00:13]} Re7 {[%clk 00:00:11]} {[%emt 00:00:06]}
27. Qf5 {[%clk 00:02:02]} 1-0

[Event "Blixt-SM 2025"]
[Site "Norrköping, Sweden"]
[Date "2025.09.26"]
[Round "2.4"]
[White "Ljungros, Lo"]
[Black "Johnson, Daniel"]
[Result "0-1"]
[TimeControl "3 min + 2 sec/move"]
[WhiteElo "2103"]
[BlackElo "2177"]

1. Nf3 {[%clk 00:03:02]} d5 {[%clk 00:03:03]} {[%emt 00:00:02]} 2. c4 {[%clk
00:03:03]} e6 {[%clk 00:03:04]} {[%emt 00:00:01]} 3. e3 {[%clk 00:03:04]}
{[%emt 00:00:01]} Nf6 {[%clk 00:03:04]} {[%emt 00:00:02]} 4. Nc3 {[%clk
00:03:04]} {[%emt 00:00:01]} b6 {[%clk 00:03:04]} {[%emt 00:00:03]} 5. cxd5
{[%clk 00:03:00]} {[%emt 00:00:06]} exd5 {[%clk 00:03:04]} {[%emt 00:00:02]} 6.
d4 {[%clk 00:03:01]} {[%emt 00:00:01]} Bb7 {[%clk 00:02:59]} {[%emt 00:00:07]}
7. Bd3 {[%clk 00:03:01]} {[%emt 00:00:02]} Bd6 {[%clk 00:02:57]} {[%emt
00:00:04]} 8. O-O {[%clk 00:02:52]} {[%emt 00:00:11]} O-O {[%clk 00:02:49]}
{[%emt 00:00:10]} 9. Qc2 {[%clk 00:02:33]} {[%emt 00:00:21]} a6 {[%clk
00:02:44]} {[%emt 00:00:07]} 10. Ne2 {[%clk 00:02:19]} {[%emt 00:00:16]} Nbd7
{[%clk 00:02:43]} {[%emt 00:00:03]} 11. Ng3 {[%clk 00:02:17]} {[%emt 00:00:03]}
Re8 {[%clk 00:02:43]} {[%emt 00:00:02]} 12. a4 {[%clk 00:01:40]} {[%emt
00:00:40]} c5 {[%clk 00:02:35]} {[%emt 00:00:10]} 13. b3 {[%clk 00:01:30]}
{[%emt 00:00:12]} Rc8 {[%clk 00:02:25]} {[%emt 00:00:12]} 14. Qb1 {[%clk
00:01:30]} {[%emt 00:00:02]} g6 {[%clk 00:02:12]} {[%emt 00:00:15]} 15. Ba3
{[%clk 00:01:29]} {[%emt 00:00:04]} Qe7 {[%clk 00:02:01]} {[%emt 00:00:12]} 16.
Ra2 {[%clk 00:00:18]} {[%emt 00:01:13]} Ne4 {[%clk 00:02:01]} {[%emt 00:00:02]}
17. Rb2 {[%clk 00:00:03]} {[%emt 00:00:17]} h5 {[%clk 00:02:00]} {[%emt
00:00:03]} 18. b4 {[%clk 00:00:04]} {[%emt 00:00:02]} c4 {[%clk 00:02:00]}
{[%emt 00:00:01]} 19. Bxe4 {[%clk 00:00:03]} {[%emt 00:00:03]} dxe4 {[%clk
00:02:01]} {[%emt 00:00:01]} 20. Ne1 {[%clk 00:00:03]} {[%emt 00:00:03]} c3
{[%clk 00:01:57]} {[%emt 00:00:06]} 21. Rc2 {[%clk 00:00:04]} a5 {[%clk
00:01:58]} 22. bxa5 {[%clk 00:00:04]} {[%emt 00:00:02]} Bxa3 {[%clk 00:01:59]}
{[%emt 00:00:02]} 23. axb6 {[%clk 00:00:05]} Ba6 {[%clk 00:01:58]} {[%emt
00:00:03]} 24. Ne2 {[%clk 00:00:05]} {[%emt 00:00:02]} Bb2 {[%clk 00:01:47]}
{[%emt 00:00:12]} 25. f3 {[%clk 00:00:06]} Nxb6 {[%clk 00:01:39]} {[%emt
00:00:10]} 26. fxe4 {[%clk 00:00:07]} {[%emt 00:00:02]} Qxe4 {[%clk 00:01:39]}
{[%emt 00:00:02]} 27. Rf3 {[%clk 00:00:06]} {[%emt 00:00:03]} Nd5 {[%clk
00:01:37]} {[%emt 00:00:04]} 28. Qa2 {[%clk 00:00:03]} {[%emt 00:00:05]} Bc4
{[%clk 00:01:31]} {[%emt 00:00:07]} 0-1

[Event "Blixt-SM 2025"]
[Site "Norrköping, Sweden"]
[Date "2025.09.26"]
[Round "3.10"]
[White "Tadjerbashi, Amir"]
[Black "Lindh, Fredrik"]
[Result "1-0"]
[TimeControl "3 min + 2 sec/move"]
[BlackTitle "FM"]
[WhiteElo "2235"]
[BlackElo "2249"]

1. e4 {[%clk 00:03:00]} {[%emt 00:00:05]} c5 {[%clk 00:03:01]} {[%emt
00:00:04]} 2. Nf3 {[%clk 00:03:01]} {[%emt 00:00:01]} e6 {[%clk 00:03:02]} 3.
Nc3 {[%clk 00:03:01]} Nc6 {[%clk 00:03:03]} {[%emt 00:00:01]} 4. d4 {[%clk
00:03:03]} cxd4 {[%clk 00:03:04]} {[%emt 00:00:01]} 5. Nxd4 {[%clk 00:03:03]}
Qc7 {[%clk 00:03:05]} {[%emt 00:00:01]} 6. g3 {[%clk 00:03:04]} {[%emt
00:00:02]} a6 {[%clk 00:03:06]} {[%emt 00:00:01]} 7. Bg2 {[%clk 00:03:05]} Nf6
{[%clk 00:03:07]} {[%emt 00:00:02]} 8. O-O {[%clk 00:03:06]} {[%emt 00:00:01]}
Nxd4 {[%clk 00:03:08]} {[%emt 00:00:02]} 9. Qxd4 {[%clk 00:03:06]} {[%emt
00:00:01]} Bc5 {[%clk 00:03:08]} 10. Bf4 {[%clk 00:03:07]} {[%emt 00:00:01]} d6
{[%clk 00:03:10]} {[%emt 00:00:02]} 11. Qd2 {[%clk 00:03:07]} {[%emt 00:00:02]}
h6 {[%clk 00:03:10]} {[%emt 00:00:02]} 12. Rad1 {[%clk 00:03:07]} {[%emt
00:00:02]} e5 {[%clk 00:03:11]} {[%emt 00:00:02]} 13. Be3 {[%clk 00:03:08]} Be6
{[%clk 00:03:02]} {[%emt 00:00:11]} 14. Bxc5 {[%clk 00:03:06]} {[%emt
00:00:04]} dxc5 {[%clk 00:03:03]} 15. Nd5 {[%clk 00:03:07]} Bxd5 {[%clk
00:03:03]} {[%emt 00:00:02]} 16. exd5 {[%clk 00:03:08]} {[%emt 00:00:01]} O-O
{[%clk 00:02:56]} {[%emt 00:00:09]} 17. d6 {[%clk 00:03:07]} {[%emt 00:00:02]}
Qb6 {[%clk 00:02:57]} 18. c4 {[%clk 00:03:06]} {[%emt 00:00:04]} Rad8 {[%clk
00:02:40]} {[%emt 00:00:19]} 19. Rfe1 {[%clk 00:03:07]} {[%emt 00:00:01]} Rfe8
{[%clk 00:02:40]} {[%emt 00:00:03]} 20. Bh3 {[%clk 00:02:52]} {[%emt 00:00:17]}
Qc6 {[%clk 00:02:10]} {[%emt 00:00:31]} 21. Bg2 {[%clk 00:02:30]} {[%emt
00:00:24]} e4 {[%clk 00:02:00]} {[%emt 00:00:13]} 22. Bh3 {[%clk 00:01:50]}
{[%emt 00:00:42]} Nd7 {[%clk 00:01:20]} {[%emt 00:00:41]} 23. Qf4 {[%clk
00:01:17]} {[%emt 00:00:36]} Ne5 {[%clk 00:01:13]} {[%emt 00:00:10]} 24. Bg2
{[%clk 00:01:18]} Nxc4 {[%clk 00:00:25]} {[%emt 00:00:51]} 25. Bxe4 {[%clk
00:01:18]} {[%emt 00:00:02]} Qd7 {[%clk 00:00:16]} {[%emt 00:00:06]} 26. Bf5
{[%clk 00:00:53]} {[%emt 00:00:31]} Rxe1+ {[%clk 00:00:11]} {[%emt 00:00:07]}
27. Rxe1 {[%clk 00:00:55]} Qb5 {[%clk 00:00:10]} {[%emt 00:00:01]} 28. Bd3
{[%clk 00:00:50]} {[%emt 00:00:08]} Qb4 {[%clk 00:00:11]} {[%emt 00:00:01]} 29.
Qe4 {[%clk 00:00:41]} {[%emt 00:00:11]} Nxd6 {[%clk 00:00:07]} {[%emt
00:00:06]} 30. Qh7+ {[%clk 00:00:41]} {[%emt 00:00:01]} Kf8 {[%emt 00:00:02]}
31. Qh8# {[%emt 00:00:04]} 1-0

[Event "Blixt-SM 2025"]
[Site "Norrköping, Sweden"]
[Date "2025.09.26"]
[Round "5.6"]
[White "Tornberg, Carlos"]
[Black "Johnson, Daniel"]
[Result "0-1"]
[TimeControl "3 min + 2 sec/move"]
[WhiteElo "2053"]
[BlackElo "2177"]

1. e4 {[%clk 00:03:04]} {[%emt 00:10:38]} e5 {[%clk 00:03:03]} {[%emt
00:00:02]} 2. Nf3 {[%clk 00:03:04]} {[%emt 00:00:01]} Nc6 {[%clk 00:03:04]}
{[%emt 00:00:01]} 3. Bc4 {[%clk 00:03:05]} Bc5 {[%clk 00:03:04]} {[%emt
00:00:02]} 4. O-O {[%clk 00:03:05]} {[%emt 00:00:02]} Nf6 {[%clk 00:03:04]}
{[%emt 00:00:02]} 5. d4 {[%clk 00:03:06]} Bxd4 {[%clk 00:03:04]} {[%emt
00:00:02]} 6. Nxd4 {[%clk 00:03:07]} Nxd4 {[%clk 00:03:04]} {[%emt 00:00:02]} 7.
f4 {[%clk 00:03:08]} d6 {[%clk 00:03:04]} {[%emt 00:00:02]} 8. fxe5 {[%clk
00:03:09]} dxe5 {[%clk 00:03:05]} 9. Bg5 {[%clk 00:03:10]} Qe7 {[%clk
00:03:02]} {[%emt 00:00:05]} 10. Kh1 {[%clk 00:03:11]} {[%emt 00:00:01]} Rg8
{[%clk 00:03:00]} {[%emt 00:00:04]} 11. Nd2 {[%clk 00:03:05]} {[%emt 00:00:08]}
Ne6 {[%clk 00:02:54]} {[%emt 00:00:08]} 12. Bxe6 {[%clk 00:02:15]} {[%emt
00:00:52]} Bxe6 {[%clk 00:02:53]} {[%emt 00:00:02]} 13. Nf3 {[%clk 00:02:06]}
{[%emt 00:00:12]} Bd7 {[%clk 00:02:40]} {[%emt 00:00:16]} 14. Qd2 {[%clk
00:01:53]} {[%emt 00:00:14]} Nxe4 {[%clk 00:02:14]} {[%emt 00:00:28]} 15. Qe3
{[%clk 00:01:35]} {[%emt 00:00:20]} Nxg5 {[%clk 00:01:58]} {[%emt 00:00:18]} 16.
Nxg5 {[%clk 00:01:36]} {[%emt 00:00:02]} f6 {[%clk 00:01:58]} {[%emt 00:00:01]}
17. Ne4 {[%clk 00:01:05]} {[%emt 00:00:34]} Bc6 {[%clk 00:01:53]} {[%emt
00:00:06]} 18. Nc3 {[%clk 00:01:03]} {[%emt 00:00:04]} Rf8 {[%clk 00:01:35]}
{[%emt 00:00:20]} 19. b4 {[%clk 00:00:58]} {[%emt 00:00:07]} b6 {[%clk
00:01:26]} {[%emt 00:00:12]} 20. b5 {[%clk 00:00:56]} {[%emt 00:00:04]} Bb7
{[%clk 00:01:26]} {[%emt 00:00:02]} 21. Rad1 {[%clk 00:00:56]} {[%emt
00:00:01]} Kf7 {[%clk 00:01:15]} {[%emt 00:00:13]} 22. Ne2 {[%clk 00:00:34]}
{[%emt 00:00:25]} Kg8 {[%clk 00:01:05]} {[%emt 00:00:11]} 23. Ng3 {[%clk
00:00:35]} {[%emt 00:00:02]} Rad8 {[%clk 00:00:44]} {[%emt 00:00:22]} 24. Nf5
{[%clk 00:00:35]} {[%emt 00:00:02]} Qf7 {[%clk 00:00:45]} {[%emt 00:00:01]} 25.
Qg3 {[%clk 00:00:24]} {[%emt 00:00:14]} Kh8 {[%clk 00:00:45]} {[%emt 00:00:02]}
26. Rde1 {[%clk 00:00:13]} {[%emt 00:00:12]} Bc8 {[%clk 00:00:40]} {[%emt
00:00:06]} 27. Ne3 {[%clk 00:00:12]} {[%emt 00:00:04]} Rd2 {[%clk 00:00:30]}
{[%emt 00:00:12]} 28. a4 {[%clk 00:00:09]} {[%emt 00:00:05]} Qg6 {[%clk
00:00:24]} {[%emt 00:00:08]} 29. Qf3 {[%clk 00:00:08]} {[%emt 00:00:03]} Rfd8
{[%clk 00:00:15]} {[%emt 00:00:11]} 30. c4 {[%clk 00:00:09]} {[%emt 00:00:01]}
Be6 {[%clk 00:00:16]} {[%emt 00:00:02]} 31. h3 {[%clk 00:00:05]} {[%emt
00:00:06]} h6 {[%clk 00:00:16]} 32. Re2 {[%clk 00:00:05]} {[%emt 00:00:02]}
R2d3 {[%clk 00:00:16]} {[%emt 00:00:02]} 33. Qf2 {[%clk 00:00:05]} {[%emt
00:00:01]} R3d4 {[%clk 00:00:15]} {[%emt 00:00:03]} 34. Rc2 {[%clk 00:00:06]}
{[%emt 00:00:02]} Qe4 {[%clk 00:00:12]} {[%emt 00:00:05]} 35. Kh2 {[%clk
00:00:05]} {[%emt 00:00:03]} Qf4+ {[%clk 00:00:08]} {[%emt 00:00:05]} 36. g3
{[%clk 00:00:05]} {[%emt 00:00:03]} Qxf2+ {[%clk 00:00:08]} {[%emt 00:00:02]}
37. Rfxf2 Rd3 {[%clk 00:00:06]} {[%emt 00:00:04]} 38. Nf1 {[%clk 00:00:05]}
{[%emt 00:00:03]} R3d4 {[%clk 00:00:04]} {[%emt 00:00:05]} 39. Nd2 {[%clk
00:00:05]} {[%emt 00:00:02]} Bf7 {[%clk 00:00:03]} {[%emt 00:00:02]} 40. g4
{[%clk 00:00:05]} {[%emt 00:00:02]} Bg6 {[%emt 00:00:02]} 41. Rb2 {[%clk
00:00:05]} e4 {[%clk 00:00:06]} 42. Nf1 {[%clk 00:00:05]} {[%emt 00:00:03]} Rd3
{[%clk 00:00:07]} 43. Ng3 {[%clk 00:00:04]} {[%emt 00:00:03]} R8d4 {[%clk
00:00:08]} 44. Rbc2 {[%clk 00:00:04]} {[%emt 00:00:02]} e3 {[%clk 00:00:09]} 45.
Rfe2 {[%clk 00:00:06]} Rd2 {[%clk 00:00:10]} {[%emt 00:00:02]} 46. Rcxd2 {[%clk
00:00:07]} Rxd2 {[%clk 00:00:11]} {[%emt 00:00:01]} 47. Kg2 {[%clk 00:00:08]}
Bd3 {[%clk 00:00:11]} {[%emt 00:00:02]} 48. Rxd2 {[%clk 00:00:07]} {[%emt
00:00:03]} exd2 {[%clk 00:00:12]} 0-1